fUSD/lending_fUSD_20240105
["ID","MTS","AMOUNT","RATE_DAILY","PERIOD"]
[310274831,1704446651654,-158.28010695,0.000228,2]
[310274832,1704446651675,-157.67,0.00022807,2]
[310274833,1704446651695,-158.28010694,0.0002285,2]
[310274834,1704446651714,-5706.45,0.00022877,2]
[310274835,1704446651733,-150.99,0.00022877,2]
[310274836,1704446651754,-157.67,0.00022877,2]
[310274837,1704446651774,-1789.2924,0.000229,2]
[310274838,1704446651793,-413.8604,0.000229,2]
[310274839,1704446651813,-158.28010694,0.000229,2]
[310274840,1704446651833,-499.99,0.000229,2]
[310274841,1704446651854,-274.18470334,0.000229,2]
[310274842,1704446651875,-385.96031337,0.000229,2]
[310274843,1704446655699,680.82407148,0.000229,2]
[310274844,1704446663270,600.0,0.0003,120]
[310274845,1704446665466,191.96207289,0.000229,2]
[310274846,1704446684076,860.27196242,0.000229,2]
[310274847,1704446684194,2861.60326126,0.000229,2]
[310274848,1704446691692,150.0,0.00029,30]
[310274849,1704446710366,468.2693,0.000229,2]
[310274850,1704446713431,2174.1296,0.000229,2]
[310274851,1704446800630,498.71,0.00021005,2]
[310274852,1704446846979,1000.0,0.00022133,2]
[310274853,1704447014150,-526.45970422,0.00022898,2]
[310274854,1704447014171,-1028.75,0.00022899,2]
[310274855,1704447014192,-155.0,0.00022908,2]
[310274856,1704447014215,-201.0,0.0002294,2]
[310274857,1704447014235,-186.2973999,0.0002299,2]
[310274858,1704447014256,-150.0,0.00022993,2]
[310274859,1704447014275,-156.30711826,0.00022998,2]
[310274860,1704447014294,-156.25125464,0.00022998,2]
[310274861,1704447014315,-377.25948834,0.00022998,2]
[310274862,1704447014335,-1601.34707897,0.00022998,2]
[310274863,1704447014355,-155.13787385,0.00022998,2]
[310274864,1704447014375,-4406.19008182,0.00022998,2]
[310274903,1704447032085,-2602.38,0.00022998,2]
[310274904,1704447032098,-620.04813024,0.00022998,2]
[310274905,1704447032113,-2208.2652,0.00022998,2]
[310274906,1704447032197,-390.87776714,0.00022998,2]
[310274907,1704447032257,-297.31393012,0.00022998,2]
[310274908,1704447032267,-202.33428816,0.00022998,2]
[310274909,1704447032277,-5729.5419428,0.00022998,2]
[310274910,1704447032291,-739.93173762,0.00022998,2]
[310274925,1704447032869,-644.2,0.00022998,2]
[310274927,1704447038057,-577.08462542,0.00022998,2]
[310274928,1704447038069,-880.72021747,0.00022998,2]
[310274929,1704447038081,-455.45206658,0.00022998,2]
[310274930,1704447038092,-317.13206227,0.00022998,2]
[310274931,1704447038163,-3259.137639,0.00022998,2]
[310274932,1704447038172,-685.28568255,0.00022998,2]
[310274933,1704447038233,-363.48635591,0.00022998,2]
[310274934,1704447038244,-769.22313,0.00022998,2]
[310274935,1704447038256,-30.23179611,0.00022998,2]
[310274936,1704447038265,-301.81970747,0.00022998,2]
[310274937,1704447038274,-1653.63121375,0.00022998,2]
[310274938,1704447038283,-258.28258838,0.00022998,2]
[310274939,1704447038293,-593.5111235,0.00022998,2]
[310274940,1704447038302,-3286.93466783,0.00022999,2]
[310274941,1704447038311,-4540.61589945,0.00022999,2]
[310274942,1704447038339,-679.47123569,0.00022999,2]
[310274943,1704447038482,-394.73047548,0.00022999,2]
[310274944,1704447038494,-305.67336491,0.00022999,2]
[310274945,1704447038503,-150.0,0.00022999,2]
[310274946,1704447038512,-99.00316151,0.00022999,2]
[310274947,1704447038528,-50.99683849,0.00022999,2]
[310274948,1704447038542,-150.0,0.00022999,2]
[310274949,1704447038551,-150.0,0.00022999,2]
[310274950,1704447038560,-150.0,0.00022999,2]
[310274951,1704447038570,-150.0,0.00022999,2]
[310274952,1704447038579,-150.0,0.00022999,2]
[310274953,1704447038589,-150.0,0.00022999,2]
[310274954,1704447038598,-150.0,0.00022999,2]
[310274955,1704447038607,-150.0,0.00022999,2]
[310274956,1704447038617,-150.0,0.00022999,2]
[310274957,1704447038626,-150.0,0.00022999,2]
[310274958,1704447038636,-186.81,0.00022999,2]
[310274959,1704447038645,-6874.63160046,0.00023,2]
[310274962,1704447038657,-541.98537446,0.00023,2]
[310274964,1704447038668,-729.82228752,0.00023,2]
[310274966,1704447038679,-976.559396,0.00023,2]
[310274967,1704447038690,-9603.7401185,0.00023,2]
[310274969,1704447038702,-578914.19288253,0.00023,2]
[310274971,1704447038721,-11301.84711786,0.00023,2]
[310274974,1704447038737,-59810.52803552,0.00023,2]
[310274976,1704447038756,-1394.80228205,0.00023,2]
[310275057,1704447040703,-18112.63469997,0.00023,2]
[310275058,1704447041472,-298.33106,0.00023,2]
[310275059,1704447041485,-310.077,0.00023,2]
[310275060,1704447041518,-486.37330056,0.00023,2]
[310275061,1704447041530,-590.02713454,0.00023,2]
[310275062,1704447041638,-613.25159976,0.00023,2]
[310275063,1704447041673,-271.80080534,0.00023,2]
[310275071,1704447045180,-1112.19942529,0.00022999,2]
[310275072,1704447045190,-16518.81333901,0.00023,2]
[310275073,1704447046232,-4400.079332,0.00023,2]
[310275074,1704447046294,-20439.94724956,0.00023,2]
[310275079,1704447071080,1348.76300526,0.00022079,2]
[310275080,1704447071105,1832.81262612,0.00022079,2]
[310275081,1704447128899,150.0,0.00022492,2]
[310275082,1704447195583,184.63778731,0.00022312,2]
[310275083,1704447195609,15.36221269,0.00022312,2]
[310275084,1704447288482,482.29,0.00020425,2]
[310275085,1704447334443,201.0,0.0002194,2]
[310275086,1704447351775,200.0,0.00022286,2]
[310275087,1704447362811,179.3,0.00022321,10]
[310275088,1704447447490,986.71,0.0002225,2]
[310275089,1704447461262,157.79,0.00022232,2]
[310275090,1704447579811,124.29820074,0.00021974,2]
[310275091,1704447579836,75.70179926,0.00021974,2]
[310275092,1704447647020,2091.74861417,0.00022009,2]
[310275093,1704447647045,1145.60138583,0.00022009,2]
[310275094,1704447670113,176.43,0.00022014,2]
[310275095,1704447727862,458.17,0.00020118,2]
[310275096,1704447728086,387.2490276,0.00022382,2]
[310275097,1704447728112,70.9209724,0.00022382,2]
[310275098,1704447825970,840.0,0.00022004,2]
[310275099,1704447830879,168.59,0.00021997,2]
[310275100,1704447881724,262.5566358,0.00022486,2]
[310275101,1704447955917,920.92,0.00022009,2]
[310275117,1704448164847,273.09,0.00022031,2]
[310275118,1704448201621,165.29,0.00022368,2]
[310275119,1704448202015,165.29,0.00022429,2]
[310275120,1704448202285,165.29,0.0002249,2]
[310275121,1704448206119,412.35,0.00020091,2]
[310275122,1704448206340,412.35,0.00022355,2]
[310275161,1704448235516,-10529.08430965,0.00022505,2]
[310275162,1704448235526,-1654.08515166,0.00022506,2]
[310275163,1704448235535,-150.0,0.0002251,2]
[310275164,1704448235544,-165.29,0.00022552,2]
[310275165,1704448235554,-165.29,0.00022613,2]
[310275166,1704448235563,-165.29,0.00022674,2]
[310275167,1704448235572,-165.29,0.00022736,2]
[310275168,1704448235582,-1843.7475332,0.00022769,2]
[310275169,1704448235592,-15956.19,0.00022774,2]
[310275170,1704448235601,-209.12,0.00022774,2]
[310275171,1704448235611,-13117.43224761,0.00022774,2]
[310275172,1704448235627,-3797.35775239,0.00022774,2]
[310275173,1704448235636,-157.79,0.00022788,2]
[310275174,1704448235645,-165.29,0.00022797,2]
[310275175,1704448235655,-165.29,0.00022858,2]
[310275176,1704448235666,-201.0,0.00022867,2]
[310275177,1704448235675,-492.665,0.000229,2]
[310275178,1704448235686,-7500.0,0.000229,2]
[310275179,1704448235698,-499.99,0.000229,2]
[310275180,1704448235708,-793.92423089,0.000229,2]
[310275181,1704448235719,-396.89881409,0.000229,2]
[310275182,1704448235729,-390.67974126,0.000229,2]
[310275183,1704448235767,-1578.56564182,0.000229,2]
[310275184,1704448235777,-165.29,0.0002292,2]
[310275185,1704448235787,-165.29,0.00022981,2]
[310275186,1704448235797,-920.92,0.00022987,2]
[310275187,1704448235807,-763.42599532,0.00022998,2]
[310275188,1704448235816,-828.65528486,0.00022998,2]
[310275189,1704448235828,-514.09738186,0.00022998,2]
[310275190,1704448235841,-224.15540394,0.00022998,2]
[310275191,1704448235851,-156.22787929,0.00022998,2]
[310275192,1704448235861,-198.31672798,0.00022999,2]
[310275193,1704448235886,-171.69435647,0.00022999,2]
[310275194,1704448235895,-142.78394891,0.00022999,2]
[310275195,1704448235912,-452.60520872,0.00022999,2]
[310275202,1704448238394,-2016.74029059,0.00022999,2]
[310275203,1704448238404,-300.35878783,0.00022999,2]
[310275204,1704448238413,-1504.13307982,0.00022999,2]
[310275205,1704448238422,-150.0,0.00022999,2]
[310275206,1704448238431,-150.0,0.00022999,2]
[310275207,1704448238442,-150.0,0.00022999,2]
[310275208,1704448238451,-150.0,0.00022999,2]
[310275209,1704448238461,-150.0,0.00022999,2]
[310275210,1704448238471,-150.0,0.00022999,2]
[310275211,1704448238480,-150.0,0.00022999,2]
[310275212,1704448238489,-150.0,0.00022999,2]
[310275213,1704448238498,-150.0,0.00022999,2]
[310275214,1704448238507,-150.0,0.00022999,2]
[310275215,1704448238516,-150.0,0.00022999,2]
[310275216,1704448238524,-150.0,0.00022999,2]
[310275217,1704448238533,-192285.85468389,0.00023,2]
[310275218,1704448238564,-9459.69672735,0.00023,2]
[310275219,1704448238575,-640.15238092,0.00023,2]
[310275220,1704448238600,-251.45095597,0.00022987,3]
[310275221,1704448238612,-342.80132642,0.00022987,3]
[310275222,1704448238621,-643.77108185,0.00023,2]
[310275226,1704448239038,-2723.71830608,0.00023,2]
[310275227,1704448239065,-2811.9175115,0.00023,2]
[310275228,1704448239076,-684120.76173192,0.00023,2]
[310275229,1704448239087,-578914.19288253,0.00023,2]
[310275230,1704448239103,-132553.99999996,0.00023,2]
[310275233,1704448240832,-278.47294506,0.000229,2]
[310275234,1704448240842,-10437.71880443,0.00023,2]
[310275235,1704448240854,-328.82160353,0.00023,2]
[310275236,1704448241560,-1504.13307981,0.00022999,2]
[310275237,1704448241570,-126748.29135285,0.00023,2]
[310275238,1704448241583,-1977.21614023,0.00023,2]
[310275239,1704448241732,-268.5775418,0.00023,2]
[310275240,1704448241743,-435.2938084,0.00023,2]
[310275241,1704448241755,-590.39596237,0.00023,2]
[310275249,1704448243348,-549.08111098,0.00023,2]
[310275250,1704448243412,-491.87639794,0.00023,2]
[310275251,1704448243424,-1893.89172587,0.00023,2]
[310275252,1704448243436,-1146.63543381,0.00023,2]
[310275253,1704448243449,-250.48040969,0.00023,2]
[310275254,1704448243508,-2989.67924325,0.00023,2]
[310275255,1704448243522,-769.03875437,0.00023,2]
[310275256,1704448243668,-440.41377552,0.00023,2]
[310275257,1704448243846,-544.05000045,0.00023,2]
[310275258,1704448243910,-11110.06845551,0.00023,2]
[310275267,1704448246344,-446.41620398,0.000229,2]
[310275268,1704448246354,-2892.41414746,0.00023,2]
[310275269,1704448246415,-264.64758707,0.00023,2]
[310275270,1704448246427,-1765.37250207,0.00023,2]
[310275271,1704448246458,-44363.09290148,0.00023,2]
[310275272,1704448246606,-469.89491661,0.00023,2]
[310275273,1704448246618,-2196.24229534,0.00023,2]
[310275275,1704448282901,-417.95209149,0.00022987,2]
[310275276,1704448282923,-200.04316364,0.00022998,2]
[310275277,1704448282944,-172.84082547,0.00022998,2]
[310275278,1704448282966,-190.5072284,0.00022998,2]
[310275279,1704448282991,-28.656691,0.00022998,2]
[310275282,1704448698572,402.03,0.00020946,2]
[310275284,1704448997397,842.87,0.00022248,2]
[310275285,1704449136897,218.47,0.00022198,2]
[310275286,1704449153346,381.92,0.00020326,2]
[310275287,1704449199321,157.94,0.00022397,2]
[310275288,1704449263242,193.19,0.00022117,2]
[310275289,1704449263271,134.81,0.00022117,2]
[310275290,1704449283764,159.58,0.0002235,2]
[310275311,1704449431379,-157.94,0.00022513,2]
[310275312,1704449431388,-110.06,0.00022542,2]
[310275313,1704449431549,-1138.31996974,0.00022542,2]
[310275314,1704449431665,-2008.97371509,0.00022542,2]
[310275315,1704449431725,-691.59727248,0.00022542,2]
[310275335,1704449433985,202.0,0.00021962,2]
[310275342,1704449437664,-1888.18540618,0.00022542,2]
[310275343,1704449437688,-492.7304822,0.00022542,2]
[310275344,1704449437840,-1178.18551452,0.00022542,2]
[310275345,1704449437855,-1725.91739606,0.00022542,2]
[310275347,1704449437920,-332.75280199,0.00022542,2]
[310275349,1704449437932,-4550.0,0.00022542,2]
[310275353,1704449437954,-54862.27744174,0.00022542,2]
[310275355,1704449437964,-381.92,0.0002259,2]
[310275357,1704449437973,-157.94,0.0002263,2]
[310275359,1704449437983,-157.94,0.00022747,2]
[310275361,1704449437992,-158.51481317,0.0002276,2]
[310275363,1704449438001,-157.94,0.00022864,2]
[310275365,1704449438010,-2802.5387,0.000229,2]
[310275367,1704449438019,-3082.0175,0.000229,2]
[310275369,1704449438028,-414.3394,0.000229,2]
[310275371,1704449438038,-672.0,0.00022903,2]
[310275372,1704449438047,-169.19,0.00022938,2]
[310275375,1704449438056,-157.94,0.0002298,2]
[310275376,1704449438066,-490.41338353,0.00022995,3]
[310275378,1704449438075,-31148.69536153,0.00022996,2]
[310275381,1704449438085,-126.343309,0.00022998,2]
[310275382,1704449438094,-1519.87111273,0.00022999,2]
[310275385,1704449438103,-3286.93466783,0.00022999,2]
[310275386,1704449438112,-7449.90085679,0.00022999,2]
[310275388,1704449438121,-150.0,0.00022999,2]
[310275390,1704449438131,-150.0,0.00022999,2]
[310275392,1704449438140,-150.0,0.00022999,2]
[310275394,1704449438149,-150.0,0.00022999,2]
[310275396,1704449438159,-150.0,0.00022999,2]
[310275398,1704449438168,-150.0,0.00022999,2]
[310275400,1704449438177,-150.0,0.00022999,2]
[310275402,1704449438188,-150.0,0.00022999,2]
[310275404,1704449438198,-150.0,0.00022999,2]
[310275406,1704449438210,-150.0,0.00022999,2]
[310275408,1704449438220,-150.0,0.00022999,2]
[310275410,1704449438230,-150.0,0.00022999,2]
[310275413,1704449438241,-575124.0451856,0.00023,2]
[310275415,1704449438254,-578914.19288253,0.00023,2]
[310275417,1704449438265,-1542.42118035,0.00023,2]
[310275471,1704449438779,328.99280523,0.00022442,2]
[310275475,1704449438802,640.17849477,0.00022442,2]
[310275482,1704449440062,-10171.096,0.00023,2]
[310275483,1704449440772,-9233.68984971,0.00023,2]
[310275484,1704449440948,-377.71961633,0.00023,2]
[310275507,1704449443403,-1255.38070207,0.00023,2]
[310275508,1704449443415,-450.72102168,0.00023,2]
[310275509,1704449443474,-303.68067826,0.00023,2]
[310275510,1704449443540,-3484.61552012,0.00023,2]
[310275511,1704449443600,-146142.79712251,0.00023,2]
[310275512,1704449445508,-1792.79423048,0.00023,2]
[310275513,1704449445622,-2510.50675055,0.00023,2]
[310275514,1704449445648,-564.73900006,0.00023,2]
[310275515,1704449445660,-519.29960926,0.00023,2]
[310275516,1704449445705,-56088.44049572,0.00023,2]
[310275517,1704449445719,-2636.92648583,0.00023,2]
[310275519,1704449445829,-419.90863616,0.00023,2]
[310275520,1704449445842,-16255.09439068,0.00023,2]
[310275521,1704449445853,-5228.0,0.00023,2]
[310275522,1704449445890,-3124.14971831,0.00023,2]
[310275523,1704449445920,-437.36462342,0.00023,2]
[310275524,1704449464234,206.0,0.00021962,2]
[310275525,1704449598974,359.06,0.00021682,2]
[310275526,1704449685919,407.7729,0.000229,14]
[310275527,1704449806813,-605.19923049,0.00023,3]
[310275528,1704449806834,-250.0,0.00023,3]
[310275529,1704449872850,532.57956019,0.00023,3]
[310275530,1704449947511,470.82682721,0.00023,3]
[310275531,1704450020999,327.37541038,0.00023,3]
[310275532,1704450084344,341.1,0.00019968,2]
[310275533,1704450084743,341.1,0.00022232,2]
[310275534,1704450096805,157.73,0.0002205,2]
[310275535,1704450097188,122.28191866,0.0002228,2]
[310275536,1704450097213,35.44808134,0.0002228,2]
[310275537,1704450101202,208.9542022,0.00022998,3]
[310275538,1704450132078,174.77,0.00021884,2]
[310275539,1704450178545,210.94516821,0.00022998,3]
[310275540,1704450195782,200.0,0.00021709,2]
[310275541,1704450210141,1757.23233209,0.00021885,2]
[310275542,1704450210165,242.76766791,0.00021885,2]
[310275543,1704450224525,262.4,0.00021885,2]
[310275544,1704450257955,158.77050239,0.00022998,3]
[310275545,1704450269486,157.79,0.00022104,2]
[310275546,1704450269692,157.79,0.00022424,2]
[310275547,1704450338237,244.90255268,0.00022998,3]
[310275548,1704450418114,176.0019324,0.00022998,3]
[310275549,1704450443764,269.2,0.00021882,2]
[310275550,1704450453077,797.36,0.00021882,2]
[310275551,1704450454144,150.0,0.00022509,14]
[310275552,1704450492485,163.04746274,0.00022998,3]
[310275553,1704450514057,202.0,0.0002242,2]
[310275554,1704450531535,399.999999,0.000137,2]
[310275555,1704450548809,157.82,0.00022047,2]
[310275556,1704450548968,157.82,0.00022239,2]
[310275557,1704450549369,157.82,0.0002243,2]
[310275558,1704450560728,1332.9,0.00022056,2]
[310275559,1704450571544,243.61800399,0.00022998,3]
[310275560,1704450606100,306.99,0.00019965,2]
[310275561,1704450606553,306.99,0.00022229,2]
[310275565,1704450631625,-157.82,0.00022622,2]
[310275566,1704450631635,-171.46992808,0.00022701,2]
[310275567,1704450631645,-150.0,0.00022733,2]
[310275568,1704450631655,-150.0,0.00022736,2]
[310275569,1704450631665,-157.79,0.00022744,2]
[310275570,1704450631675,-150.0,0.00022744,2]
[310275571,1704450631685,-150.0,0.00022746,2]
[310275572,1704450631696,-150.0,0.00022751,2]
[310275573,1704450631710,-304.96930582,0.00022757,2]
[310275574,1704450631721,-150.0,0.00022758,2]
[310275575,1704450631730,-150.0,0.00022758,2]
[310275576,1704450631740,-150.0,0.00022759,2]
[310275577,1704450631750,-150.0,0.00022763,2]
[310275578,1704450631760,-150.0,0.00022764,2]
[310275579,1704450631769,-150.0,0.00022768,2]
[310275580,1704450631779,-150.0,0.00022771,2]
[310275581,1704450631788,-150.0,0.00022775,2]
[310275582,1704450631797,-150.0,0.00022776,2]
[310275583,1704450631805,-150.0,0.00022779,2]
[310275584,1704450631815,-150.0,0.00022782,2]
[310275585,1704450631826,-150.0,0.0002279,2]
[310275586,1704450631836,-150.0,0.0002279,2]
[310275587,1704450631846,-150.0,0.00022791,2]
[310275588,1704450631856,-150.0,0.00022796,2]
[310275589,1704450631865,-150.0,0.00022797,2]
[310275590,1704450631875,-300.0,0.00022799,2]
[310275591,1704450631884,-150.0,0.00022801,2]
[310275592,1704450631894,-150.0,0.00022801,2]
[310275593,1704450631903,-150.0,0.00022805,2]
[310275594,1704450631914,-150.0,0.00022806,2]
[310275595,1704450631926,-150.0,0.00022807,2]
[310275596,1704450631935,-150.0,0.00022807,2]
[310275597,1704450631945,-150.0,0.00022812,2]
[310275598,1704450631955,-150.0,0.00022812,2]
[310275599,1704450631965,-150.0,0.00022813,2]
[310275600,1704450631975,-157.82,0.00022813,2]
[310275601,1704450631984,-150.0,0.00022818,2]
[310275602,1704450631993,-150.0,0.00022821,2]
[310275603,1704450632003,-150.0,0.00022828,2]
[310275604,1704450632012,-150.0,0.0002283,2]
[310275605,1704450632022,-150.0,0.00022837,2]
[310275606,1704450632032,-150.0,0.0002284,2]
[310275607,1704450632042,-150.0,0.00022842,2]
[310275608,1704450632052,-150.0,0.00022847,2]
[310275609,1704450632061,-230.87861514,0.00022859,2]
[310275610,1704450632070,-150.0,0.0002286,2]
[310275611,1704450632081,-797.36,0.0002286,2]
[310275612,1704450632090,-150.0,0.00022864,2]
[310275613,1704450632100,-150.0,0.00022866,2]
[310275614,1704450632109,-150.0,0.00022872,2]
[310275615,1704450632119,-150.0,0.00022873,2]
[310275616,1704450632138,-150.0,0.00022873,2]
[310275617,1704450632156,-150.0,0.00022875,2]
[310275618,1704450632169,-150.0,0.00022879,2]
[310275619,1704450632186,-150.0,0.00022883,2]
[310275620,1704450632204,-150.0,0.00022889,2]
[310275621,1704450632220,-150.0,0.00022894,2]
[310275622,1704450632234,-18308.70707573,0.000229,2]
[310275623,1704450632249,-280.11160966,0.000229,2]
[310275624,1704450632476,-134.22779034,0.000229,2]
[310275625,1704450632490,-147.84221966,0.000229,2]
[310275626,1704450632538,-2074.43829325,0.000229,2]
[310275627,1704450637650,-580.25818709,0.000229,2]
[310275628,1704450637660,-150.0,0.0002291,2]
[310275629,1704450637670,-150.0,0.00022913,2]
[310275630,1704450637680,-150.0,0.00022914,2]
[310275631,1704450637689,-150.0,0.00022916,2]
[310275632,1704450637699,-150.0,0.00022921,2]
[310275633,1704450637710,-307.40170157,0.00022923,2]
[310275634,1704450637719,-150.0,0.00022929,2]
[310275635,1704450637728,-150.0,0.00022931,2]
[310275636,1704450637742,-150.0,0.00022931,2]
[310275637,1704450637751,-150.0,0.00022932,2]
[310275638,1704450637762,-150.0,0.00022934,2]
[310275639,1704450637771,-150.0,0.00022937,2]
[310275640,1704450637782,-153.45562529,0.00022938,2]
[310275641,1704450637793,-150.0,0.00022939,2]
[310275642,1704450637804,-150.0,0.00022942,2]
[310275643,1704450637814,-150.0,0.00022945,2]
[310275644,1704450637825,-150.0,0.00022946,2]
[310275645,1704450637835,-150.0,0.00022955,2]
[310275646,1704450637846,-150.0,0.0002296,2]
[310275647,1704450637856,-150.0,0.00022962,2]
[310275648,1704450637865,-150.0,0.00022964,2]
[310275649,1704450637875,-150.0,0.00022969,2]
[310275650,1704450637884,-150.0,0.00022971,2]
[310275651,1704450637893,-150.0,0.00022974,2]
[310275652,1704450637902,-150.0,0.00022977,2]
[310275653,1704450637911,-174.77,0.00022978,2]
[310275654,1704450637921,-150.0,0.00022982,2]
[310275655,1704450637930,-150.0,0.00022983,2]
[310275656,1704450637939,-150.0,0.00022985,2]
[310275657,1704450637949,-150.0,0.00022985,2]
[310275658,1704450637959,-150.0,0.0002299,2]
[310275659,1704450637969,-300.0,0.00022991,2]
[310275660,1704450637978,-150.0,0.00022993,2]
[310275661,1704450637989,-7449.90085679,0.00022998,2]
[310275662,1704450637998,-1519.87111273,0.00022998,2]
[310275663,1704450638007,-3286.93466783,0.00022999,2]
[310275664,1704450638017,-150.0,0.00022999,2]
[310275665,1704450638027,-150.0,0.00022999,2]
[310275666,1704450638037,-150.0,0.00022999,2]
[310275667,1704450638046,-150.0,0.00022999,2]
[310275668,1704450638055,-150.0,0.00022999,2]
[310275669,1704450638064,-150.0,0.00022999,2]
[310275670,1704450638073,-150.0,0.00022999,2]
[310275671,1704450638083,-150.0,0.00022999,2]
[310275672,1704450638092,-150.0,0.00022999,2]
[310275673,1704450638101,-150.0,0.00022999,2]
[310275674,1704450638111,-150.0,0.00022999,2]
[310275675,1704450638122,-59026.53121292,0.00023,2]
[310275676,1704450638135,-45439.35333278,0.00023,2]
[310275677,1704450638148,-375.46292125,0.00023,2]
[310275680,1704450638169,-912.60619991,0.00023,2]
[310275682,1704450638197,-628718.62429018,0.00023,2]
[310275683,1704450638209,-578914.19288253,0.00023,2]
[310275686,1704450638221,-7163.01719087,0.00023,2]
[310275780,1704450640930,-277.31201432,0.000229,2]
[310275781,1704450640940,-34149.4518248,0.00023,2]
[310275788,1704450641410,-417.30664799,0.00023,2]
[310275789,1704450641422,-356.11178615,0.00023,2]
[310275790,1704450641442,-10031.63084713,0.00023,2]
[310275791,1704450641453,-299.59217165,0.00023,2]
[310275805,1704450642742,-3542.2,0.00023,2]
[310275806,1704450642753,-16374.7793937,0.00023,2]
[310275807,1704450642826,-395.45782972,0.00023,2]
[310275811,1704450645772,-273.57247901,0.00023,2]
[310275812,1704450645957,-29181.32547917,0.00023,2]
[310275818,1704450693780,206.0,0.0002242,2]
[310275819,1704450800017,150.0,0.00022493,2]
[310275820,1704450886264,446.40323492,0.00022493,2]
[310275821,1704450922237,155.0694758,0.00022,2]
[310275822,1704451000978,250.0,0.00023,3]
[310275823,1704451067284,276.29,0.00020572,2]
[310275824,1704451220248,209.92,0.00022446,2]
[310275825,1704451318463,157.79,0.00022263,2]
[310275826,1704451515026,174.77,0.00022246,2]
[310275827,1704451590045,262.47,0.00020356,2]
[310275828,1704451600975,161.56,0.00022461,2]
[310275829,1704451655386,106.5300358,0.00022282,2]
[310275830,1704451655411,584.5099642,0.00022282,2]
[310275831,1704451659158,832.06,0.00022265,2]
[310275851,1704451839917,-262.47,0.0002262,2]
[310275852,1704451839927,-157.59063908,0.000228,2]
[310275853,1704451839937,-161.56,0.00022851,2]
[310275854,1704451839946,-111.95629282,0.00022854,2]
[310275855,1704451839958,-38.04370718,0.00022854,2]
[310275856,1704451839968,-150.0,0.00022898,2]
[310275857,1704451839978,-220.46777259,0.00022899,2]
[310275858,1704451839990,-373.66222407,0.00022899,2]
[310275859,1704451840020,-11427.39736436,0.00022899,2]
[310275860,1704451840080,-439.98739093,0.00022899,2]
[310275861,1704451840151,-5488.64717693,0.00022899,2]
[310275862,1704451840165,-2342.65834162,0.00022899,2]
[310275864,1704451840331,-3679.52097605,0.00022899,2]
[310275866,1704451840393,-28.14598563,0.00022899,2]
[310275868,1704451840403,-423.78969626,0.000229,2]
[310275870,1704451840416,-2658.22780374,0.000229,2]
[310275872,1704451840426,-7500.0,0.000229,2]
[310275874,1704451840436,-492.665,0.000229,2]
[310275876,1704451840446,-12452.4742,0.000229,2]
[310275878,1704451840456,-793.92423089,0.000229,2]
[310275880,1704451840466,-157.59063907,0.000229,2]
[310275883,1704451840477,-396.89881409,0.000229,2]
[310275885,1704451840488,-157.13967025,0.00022929,2]
[310275887,1704451840497,-346.27334601,0.00022987,2]
[310275889,1704451840507,-352.24058426,0.00022999,2]
[310275891,1704451840517,-150.0,0.00022999,2]
[310275893,1704451840526,-150.0,0.00022999,2]
[310275895,1704451840536,-150.0,0.00022999,2]
[310275897,1704451840546,-150.0,0.00022999,2]
[310275899,1704451840555,-150.0,0.00022999,2]